Cogmind - Beta 15 @@@ ROGUE MODE // 2025.05.11 @ 19:26:42 Player: Anting Result: Self-destructed Performance ------------- Evolutions (2) 1000 Regions Visited (5) 1000 Robots Destroyed (31) 155 Value Destroyed (859) 859 Prototype IDs (26) 520 Alien Tech Used (0) 0 Bonus (331) 331 TOTAL SCORE: 3865 Bonus ------- Follower Combat Kills 49 Aligned with FarCom 300 Friendly Fire -18 Cogmind --------- Core Integrity 428/550 Matter 114/300 Energy 265/265 System Corruption 0% Temperature Cool (18) Movement Treading (158) Location -8/Materials Parts ------- > --- POWER (1) -------- Improved Ion Engine > --- PROPULSION (4) --- Light Treads Light Treads Armored Treads Advanced Treads > --- UTILITY (4) ------ High-capacity Storage Unit Targeting Computer Target Analyzer > --- WEAPON (2) ------- Gauss Rifle Rocket Launcher > --- INVENTORY (20) --- Light Deuterium Engine Improved Flight Unit Improved Flight Unit Improved Flight Unit Cesium-ion Thruster Small Storage Unit Improved Sensor Array Experimental Sensor Array Improved Signal Interpreter System Shield Ion Cannon YOLO Cannon Enhanced Autogun Enhanced Autogun Enhanced Autogun Enhanced Autogun Gauss Rifle Axe Peak State ------------ > --- POWER ------------ Improved Ion Engine > --- PROPULSION ------- Carbon-fiber Leg Carbon-fiber Leg Carbon-fiber Leg Carbon-fiber Leg > --- UTILITY ---------- High-capacity Storage Unit Targeting Computer Target Analyzer Hardened Light Armor Plating > --- WEAPON ----------- Enhanced Autogun Gauss Rifle > --- INVENTORY -------- Light Deuterium Engine Armored Treads Advanced Treads Improved Flight Unit Improved Flight Unit Improved Flight Unit Cesium-ion Thruster Small Storage Unit Improved Sensor Array Experimental Sensor Array Improved Signal Interpreter System Shield Ion Cannon YOLO Cannon Enhanced Autogun Enhanced Autogun Gauss Rifle Rocket Launcher Axe [Rating: 37] Favorites ----------- Power Light Ion Engine Engine Light Ion Engine Propulsion Light Treads Treads Light Treads Leg Carbon-fiber Leg Flight Unit Improved Flight Unit Utility High-capacity Storage Unit Device Improved Sensor Array Storage High-capacity Storage Unit Processor Targeting Computer Protection Light Armor Plating Weapon Assault Rifle Energy Cannon Ion Cannon Ballistic Gun Assault Rifle Launcher Rocket Launcher Build | -11 -10 -10 -10 -9 -8 ------- Run | Yrd Mat Min Exi Min Mat Slots Evolved 4 | . . . . . 4 Power . | . . . . . . Propulsion 2 | . . . . . 2 Utility 2 | . . . . . 2 Weapon . | . . . . . . Parts Attached 32 | 6 . . 3 1 22 Power 2 | 1 . . . . 1 Engine 2 | 1 . . . . 1 Core . | . . . . . . Reactor . | . . . . . . Propulsion 14 | 2 . . 2 . 10 Treads 6 | . . . 2 . 4 Leg 7 | 2 . . . . 5 Wheel . | . . . . . . Hover . | . . . . . . Flight 1 | . . . . . 1 Utility 7 | 1 . . 1 1 4 Device 1 | . . . . . 1 Storage 2 | 1 . . 1 . . Processor 2 | . . . . . 2 Hackware . | . . . . . . Protection 2 | . . . . 1 1 Artifact . | . . . . . . Weapon 9 | 2 . . . . 7 Energy Gun . | . . . . . . Energy Cannon 3 | . . . . . 3 Ballistic Gun 5 | 2 . . . . 3 Ballistic Cannon . | . . . . . . Launcher 1 | . . . . . 1 Special Weapon . | . . . . . . Impact Weapon . | . . . . . . Slashing Weapon . | . . . . . . Piercing Weapon . | . . . . . . Special Melee Weapon . | . . . . . . Unidentified Prototypes 3 | . . . . . 3 Parts Lost 4 | . . . . . 4 Power . | . . . . . . Propulsion 1 | . . . . . 1 Utility 2 | . . . . . 2 Weapon 1 | . . . . . 1 Highest Loss Streak 1 | . . . . . 1 To Critical Strikes . | . . . . . . Average Backups 12 | 3 4 5 7 12 18 Power 1 | . 1 1 1 1 1 Propulsion 5 | 1 2 3 5 5 5 Utility 2 | . . . . 2 5 Weapon 3 | . 1 . . 4 5 Tool/Special . | . . . . . . Unused Backups 28 | . . 4 . . 24 Power 4 | . . 1 . . 3 Propulsion 10 | . . 1 . . 9 Utility 5 | . . 1 . . 4 Weapon 9 | . . 1 . . 8 Tool/Special . | . . . . . . Average Slot Usage (%) 89 | . 85 85 85 98 87 Engine 12 | . 14 14 14 14 9 Treads 13 | . . . 17 28 8 Leg 15 | . 28 28 10 . 22 Storage 12 | . 14 14 14 14 9 Processor 4 | . . . . . 10 Protection 6 | . . . . 12 8 Ballistic Gun 23 | . 28 28 28 28 15 Peak Build Rating 37 | 6 6 7 9 11 37 Average Rating 15 | 5 6 6 7 10 28 On Entrance 6 | . 6 6 7 8 11 Naked Turns . | . . . . . . Heaviest Build 61 | 11 11 11 46 49 61 Greatest Support 82 | 20 20 20 40 40 82 Greatest Overweight (x) 3 | . . . 1 1 3 Average Overweight (x) . | . . . . 1 . Largest Inventory Capacity 20 | 8 8 8 20 20 20 Average Capacity 16 | 7 8 8 11 20 20 Most Carried 20 | 4 5 8 9 16 20 Average Carried 13 | 3 4 5 8 13 19 Final Capacity 20 | 8 8 8 20 20 20 Final Carried 19 | 4 5 8 9 16 19 Class Distribution -------------------- 94% | Mutant 5% | Skirmisher Dominant Class ---------------- Mutant | -10/Materials Mutant | -10/Mines Mutant | -10/Exiles Mutant | -9/Mines Mutant | -8/Materials Resources | -11 -10 -10 -10 -9 -8 ----------- Run | Yrd Mat Min Exi Min Mat Matter Collected 954 | 248 15 98 . 40 553 Remotely . | . . . . . . Salvage Created 857 | 37 43 116 . . 661 Parts 70 | 6 4 16 . . 44 Haulers Intercepted 2 | . . . . . 2 Recyclers Shooed 4 | . 1 1 . . 2 Parts Field Recycled . | . . . . . . Retrieved Matter . | . . . . . . Parts Self-Destructed . | . . . . . . Prevented . | . . . . . . Kills | -11 -10 -10 -10 -9 -8 ------- Run | Yrd Mat Min Exi Min Mat Combat Hostiles Destroyed 19 | . 3 5 . . 11 Guns 13 | . 3 5 . . 5 Cannons 2 | . . . . . 2 AOE 4 | . . . . . 4 Classes Destroyed 10 | 1 1 1 . . 7 Worker 4 | . . . . . 4 Builder 1 | . . . . . 1 Tunneler 2 | 2 . . . . . Hauler 2 | . . . . . 2 Mechanic 1 | . . . . . 1 Watcher 2 | . . . . . 2 Swarmer 7 | . 3 3 . . 1 Grunt 6 | . . 2 . . 4 Sentry 2 | . . . . . 2 Hunter 4 | . . . . . 4 Best Kill Streak 4 | 1 3 3 . . 4 Combat Bots Only 3 | . 3 3 . . 2 Max Kills in Single Turn 2 | 1 1 1 . . 2 Gunslinging . | . . . . . . Exploded 1 | . . . . . 1 Melee . | . . . . . . Uniques/NPCs Destroyed . | . . . . . . Combat | -11 -10 -10 -10 -9 -8 -------- Run | Yrd Mat Min Exi Min Mat Hostile Shots Fired 117 | . 8 24 . . 85 Missed 31 | . 1 3 . . 27 Hits 86 | . 7 21 . . 58 Projectile 86 | . 7 21 . . 58 Critical Strikes 2 | . . . . . 2 Damage Taken 1216 | . 54 276 . . 886 Core 173 | . 6 45 . . 122 Absorbed by Shields . | . . . . . . Core Remaining (%) 89 | 100 . . . 79 . Volleys Fired 104 | 5 7 14 . . 78 Largest 2 | 2 2 2 . . 2 Hottest 88 | 40 40 40 . . 88 Shots Fired 189 | 10 14 28 . . 137 Gun 163 | 10 14 28 . . 111 Cannon 19 | . . . . . 19 Launcher 7 | . . . . . 7 Special . | . . . . . . Kinetic 163 | 10 14 28 . . 111 Thermal 19 | . . . . . 19 Explosive 7 | . . . . . 7 Electromagnetic . | . . . . . . Robot Hit Streak 8 | 3 5 6 . . 8 Robot Miss Streak 4 | 2 2 2 . . 4 Penetration Max 1 | . . . . . 1 Secondary Targets 1 | . . 1 . . . Max Gunslinging Chain 1 | . . 1 . . . Shots Hit Robots 103 | 6 6 18 . . 73 Core Hits 49 | 2 4 11 . . 32 Critical Kills 1 | . . . . . 1 Critical Parts Destroyed 3 | 1 . . . . 2 Critical Strikes 4 | 1 . . . . 3 Destroy 4 | 1 . . . . 3 Melee Attacks . | . . . . . . Impact . | . . . . . . Slashing . | . . . . . . Piercing . | . . . . . . Sneak Attacks . | . . . . . . Combat Hostiles . | . . . . . . Follow-up Attacks . | . . . . . . Damage Inflicted 2430 | 63 69 211 . . 2087 Guns 1397 | 61 69 190 . . 1077 Cannons 226 | . . . . . 226 Explosions 783 | . . . . . 783 Melee . | . . . . . . Ramming 24 | 2 . 21 . . 1 Kinetic 1397 | 61 69 190 . . 1077 Thermal 488 | . . . . . 488 Explosive 521 | . . . . . 521 Electromagnetic . | . . . . . . Impact . | . . . . . . Slashing . | . . . . . . Piercing . | . . . . . . Highest Corruption . | . . . . . . Average Corruption . | . . . . . . Corruption Purged . | . . . . . . Corruption Blocked . | . . . . . . Overload Shots . | . . . . . . Overflow Damage 120 | . . . . . 120 Projectiles . | . . . . . . Explosions 120 | . . . . . 120 Melee . | . . . . . . Knockbacks . | . . . . . . Impact . | . . . . . . Kinetic . | . . . . . . Secondary . | . . . . . . Self-Inflicted Damage 8 | . . . . . 8 Shots 1 | . . . . . 1 Rammed 1 | . . . . . 1 Targets Rammed 6 | 1 . 4 . . 1 Kicked 5 | 1 . 4 . . . Crushed . | . . . . . . Highest Temperature 276 | . . 9 . . 276 Average Temperature 38 | . . 8 . . 40 Received Heat Transfer 309 | . . 120 . . 189 Siege Activations . | . . . . . . Martial Activations . | . . . . . . Shielding Activations . | . . . . . . Robots Disrupted . | . . . . . . Combat Hostiles . | . . . . . . Robots Corrupted . | . . . . . . Combat Hostiles . | . . . . . . Parts Fried . | . . . . . . Impact Corruptions . | . . . . . . Robots Melted . | . . . . . . Combat Hostiles . | . . . . . . Parts Melted . | . . . . . . Heat Transferred 520 | . . . . . 520 Parts Sabotaged . | . . . . . . Parts Stolen . | . . . . . . Parts Stripped . | . . . . . . Power Chain Reactions . | . . . . . . Alert | -11 -10 -10 -10 -9 -8 ------- Run | Yrd Mat Min Exi Min Mat Maximum Alert Level . | . . . . . . Low Security (%) 100 | 100 100 100 . 100 100 Level 1 . | . . . . . . Level 2 . | . . . . . . Level 3 . | . . . . . . Level 4 . | . . . . . . Level 5 . | . . . . . . High Security . | . . . . . . Max Security . | . . . . . . Peak Influence 123 | 5 71 60 . . 123 Initial 19 | . . 19 . . . Average 21 | 1 39 15 . . 40 Influence Increases 874 | 10 71 120 . . 673 Destroy 0b10 Robot/C 440 | . 60 100 . . 280 Destroy 0b10 Robot/NC 60 | 10 . . . . 50 Destroy Leader 118 | . 10 20 . . 88 Allied During Kill 6 | . . . . . 6 Disable Machine 30 | . . . . . 30 Anti-Garrison Action 150 | . . . . . 150 Destroy Structure 55 | . 1 . . . 54 Lose Combat Pursuer 15 | . . . . . 15 Influence Decreases 568 | 10 20 131 40 . 367 Entered New Map 72 | . . 32 40 . . Time Decay 454 | 10 20 99 . . 325 Lost Part 22 | . . . . . 22 Lost Ally 20 | . . . . . 20 Squads Dispatched 5 | . . . . . 5 Investigation 1 | . . . . . 1 Extermination . | . . . . . . Reinforcement 2 | . . . . . 2 Assault 2 | . . . . . 2 Garrison . | . . . . . . Intercept . | . . . . . . Searches Triggered . | . . . . . . Construction Impeded . | . . . . . . Haulers Reinforced . | . . . . . . Active Scanning Responses . | . . . . . . Cargo Convoy Interrupts . | . . . . . . Stealth | -11 -10 -10 -10 -9 -8 --------- Run | Yrd Mat Min Exi Min Mat Distress Signals 4 | . 1 . . . 3 Communications Jammed . | . . . . . . Distress Signals . | . . . . . . Times Spotted 39 | . 5 7 . . 27 Peak Tracking Total 4 | . 3 2 . . 4 Tactical Retreats 1 | . . . . . 1 Traps | -11 -10 -10 -10 -9 -8 ------- Run | Yrd Mat Min Exi Min Mat Traps Triggered 1 | . . . . . 1 Indirectly . | . . . . . . Trap Hack Attempts . | . . . . . . Triggered . | . . . . . . Disarmed . | . . . . . . Reprogrammed . | . . . . . . Reused . | . . . . . . Traps Extracted . | . . . . . . Installed . | . . . . . . Triggered . | . . . . . . Machines | -11 -10 -10 -10 -9 -8 ---------- Run | Yrd Mat Min Exi Min Mat Machines Disabled 3 | . . . . . 3 Max in Single Turn 2 | . . . . . 2 Garrison Access 1 | . . . . . 1 Machines Repaired . | . . . . . . Machines Dismantled . | . . . . . . Machines Sabotaged . | . . . . . . Overloaded Fab Kills . | . . . . . . Hacking | -11 -10 -10 -10 -9 -8 --------- Run | Yrd Mat Min Exi Min Mat Machines Accessed 2 | . . . 2 . . Terminals . | . . . . . . Fabricators . | . . . . . . Repair Stations . | . . . . . . Recycling Units . | . . . . . . Scanalyzers . | . . . . . . Garrison Access . | . . . . . . Total Hacks 2 | . . . 2 . . Successful 2 | . . . 2 . . Failed . | . . . . . . Catastrophic . | . . . . . . Database Lockouts . | . . . . . . Manual 1 | . . . 1 . . Terminals . | . . . . . . Fabricators . | . . . . . . Repair Stations . | . . . . . . Recycling Units . | . . . . . . Scanalyzers . | . . . . . . Garrison Access . | . . . . . . Terminal Hacks 2 | . . . 2 . . Record 1 | . . . 1 . . Proto ID Catalog 1 | . . . 1 . . Fabricator Hacks . | . . . . . . Repair Station Hacks . | . . . . . . Recycling Unit Hacks . | . . . . . . Scanalyzer . | . . . . . . Garrison Access Hacks . | . . . . . . Unauthorized Hacks . | . . . . . . Terminals . | . . . . . . Fabricators . | . . . . . . Repair Stations . | . . . . . . Recycling Units . | . . . . . . Scanalyzers . | . . . . . . Garrison Access . | . . . . . . Data Cores Recovered . | . . . . . . Used . | . . . . . . Hacking Detections . | . . . . . . Full Trace Events . | . . . . . . Feedback Events . | . . . . . . Feedback Blocked . | . . . . . . Robot Schematics Acquired . | . . . . . . Robots Built . | . . . . . . Authchips . | . . . . . . Time . | . . . . . . Total Robot Build Rating . | . . . . . . Part Schematics Acquired . | . . . . . . Parts Built . | . . . . . . Authchips . | . . . . . . Time . | . . . . . . Total Part Build Rating . | . . . . . . Parts Repaired . | . . . . . . Time . | . . . . . . Parts Recycled . | . . . . . . Recycled Matter . | . . . . . . Retrieved Matter . | . . . . . . Retrieved Components . | . . . . . . Parts Scanalyzed . | . . . . . . Part Schematics Acquired . | . . . . . . Parts Damaged . | . . . . . . Bothacking | -11 -10 -10 -10 -9 -8 ------------ Run | Yrd Mat Min Exi Min Mat Used RIF Installer . | . . . . . . Robots Hacked . | . . . . . . Non-combat . | . . . . . . Combat . | . . . . . . Robot Hacks Applied . | . . . . . . Relay Couplers Released 1 | . . . . . 1 Machine Destruction 1 | . . . . . 1 Fabnet Peak Effective % . | . . . . . . Robots Rewired . | . . . . . . Allies Hacked . | . . . . . . Hacks Repelled . | . . . . . . Allies | -11 -10 -10 -10 -9 -8 -------- Run | Yrd Mat Min Exi Min Mat Total Allies 2 | . . . . 2 . Largest Group 2 | . . . . 2 2 Highest-Rated Group 45 | . . . . 45 45 Highest-Rated Ally 31 | . . . . 31 31 Total Orders . | . . . . . . Ally Attacks 16 | . . . . . 16 Total Damage 188 | . . . . . 188 Kills 3 | . . . . . 3 Allies Corrupted . | . . . . . . Allies Melted . | . . . . . . Intel | -11 -10 -10 -10 -9 -8 ------- Run | Yrd Mat Min Exi Min Mat Active Infowar (turns) 254 | . . . . . 254 Sensors 254 | . . . . . 254 Robot Analysis Total . | . . . . . . Derelict Logs Recovered 2 | . . 1 . 1 . Drone Launches . | . . . . . . Drone Recoveries . | . . . . . . Exploration | -11 -10 -10 -10 -9 -8 ------------- Run | Yrd Mat Min Exi Min Mat Turns Passed 2704 | 102 78 398 372 743 1011 Spaces Moved 1402 | 70 48 286 239 307 452 Core 14 | 14 . . . . . Treads 535 | . . . 126 307 102 Legs 853 | 56 48 286 113 . 350 Wheels . | . . . . . . Hover . | . . . . . . Flight . | . . . . . . Fastest Speed 50 | 50 120 120 120 240 120 Average Speed 161 | 106 120 120 154 240 149 Slowest Speed 330 | 120 120 120 240 240 330 Overloaded Moves . | . . . . . . Propulsion Burnouts . | . . . . . . Robots Hopped . | . . . . . . Potential Cave-ins . | . . . . . . Cave-ins Triggered . | . . . . . . Exploration Rate (%) 47 | 5 20 71 59 80 48 Regions Visited 5 Branch Regions 3 Pre-discovered Areas 1 | . . . 1 . . Known Exits Taken 1 | . . 1 . . . Unknown Exits Taken 4 | 1 1 . 1 1 . Scrap Searched 4 | . . 1 . 3 . Spaces Dug . | . . . . . . Terrain Destroyed 56 | . . . . . 56 Melee . | . . . . . . Projectile 4 | . . . . . 4 AOE 52 | . . . . . 52 Terrain Rammed . | . . . . . . Walls Destroyed . | . . . . . . Machines Disabled . | . . . . . . Actions | -11 -10 -10 -10 -9 -8 --------- Run | Yrd Mat Min Exi Min Mat Total 1696 | 85 56 318 245 314 678 Wait 81 | . 1 4 . . 76 Move 1398 | 70 47 285 238 306 452 Hop . | . . . . . . Pick Up 39 | 4 1 7 1 7 19 Fast Attach 24 | 6 . . 1 1 16 Attach 7 | . . . 2 . 5 Detach 1 | . . . 1 . . Swap 5 | . . . . . 5 Drop 32 | . . 4 2 . 26 Fire 104 | 5 7 14 . . 78 Melee . | . . . . . . Ram . | . . . . . . Kick 4 | . . 4 . . . Crush 1 | . . . . . 1 Escape Stasis . | . . . . . . Rewire . | . . . . . . Trap . | . . . . . . Miscellaneous . | . . . . . . Route ------- -11/Scrapyard -10/Materials (discovered 2 exits: [*Mat] / [*Min]) -10/Mines (discovered 2 exits: [*Mat] / *Exi) -10/Exiles -9/Mines -8/Materials (discovered 1 exit: [*Fac]) History --------- Turn | Location | Event 10 | -11/Scrapyard | Discovered new exit (range 14) 103 | -11/Scrapyard | Entered Materials 161 | -10/Materials | Discovered new exit (range 14) 163 | -10/Materials | Discovered new exit (range 13) 181 | -10/Materials | Entered Mines 305 | -10/Mines | Identified exit to Exiles 313 | -10/Mines | Build established: Mutant 503 | -10/Mines | Found a Scrap Suit stashed away for nefarious purposes 506 | -10/Mines | Found Scrap Suit 554 | -10/Mines | Discovered new exit (range 7) 575 | -10/Mines | Deemed a non-threat by the Exiles lab entrance 579 | -10/Mines | Entered Exiles 612 | -10/Exiles | Met 8R-AWN 630 | -10/Exiles | Met EX-HEX 662 | -10/Exiles | Met EX-BIN 677 | -10/Exiles | Aligned with FarCom system 678 | -10/Exiles | Given EX-Vault access code 708 | -10/Exiles | Opened EX-Vault 718 | -10/Exiles | Found YOLO Cannon 751 | -10/Exiles | Warned to stay clear of 0b10 Research branches 797 | -10/Exiles | Met EX-DEC 804 | -10/Exiles | Learned location of Zion (-6) 920 | -10/Exiles | Discovered new exit (range 14) 951 | -10/Exiles | Left Exiles lab with YOLO Cannon 951 | -10/Exiles | Entered Mines 1261 | -9/Mines | Learned Materials stockpile data 1578 | -9/Mines | Found a damaged Exp. Sensor Array with a note attached 1607 | -9/Mines | Found Prototype Device 1675 | -9/Mines | Discovered new exit (range 7) 1694 | -9/Mines | Entered Materials 1694 | -8/Materials | Accompanied by 2 allies 1694 | -8/Materials | Evolved 4 slots: Propulsion x2, Utility x2 1699 | -8/Materials | Led the pair of lost Derelicts to an unsafe place 2214 | -8/Materials | Discovered new exit (range 15) 2705 | -8/Materials | Self-destructed Last Messages --------------- 02652_ Acquired 30 matter. 02658_ Acquired 19 matter. 02666_ Slug penetrates Wall. 02671_ K-01 Serf destroyed. 02672_ K-01 Serf collects debris. 02674_ ALERT: Hostiles spotted, dispatching reinforcements to Terminal M012. 02677_ Slug penetrates Wall. 02677_ K-01 Serf collects debris. 02687_ Slug penetrates Wall. 02692_ Slug penetrates K-01 Serf. 02692_ K-01 Serf destroyed. 02703_ G-47 Trooper destroyed. 02705_ Fusion Modulator explodes. 02705_ Destroyed Lgt. Nuclear Core. 02705_ G-47 Trooper destroyed. 02705_ Destroyed Aluminum Leg. 02705_ Destroyed Lgt. Nuclear Core. 02705_ ALERT: Garrison Access compromised, dispatching multiple assault carriers. Map ----- +----------------------------------------------------+ | # % ########### # #??????????????? | | # # """ # # #??????????????? | | # # "T" + +%[[ #??????????????? | | *** # " " # # #%]! #??????????????? | | *** # "R" # = # #] = #??????????????? | | *** %#! """ ########### ######+#??????????????? | | #####+######+########## ##### ##?????????????? | | ?# *= #?????????????? | | ?# +?????????????? | | ?# #?????????????? | | ?# ################## #### #?????????????? | | ?# #??????# = ### ##??# #?????????????? | | ?# #??????# #?# #???# #?????????????? | | ?# #??????# #?# #???# #?????????????? | | ?# #???]??# #?# #???# #?????????????? | | ?# #??????# #?# #???# #?????????????? | | ?# #????? # #?# #???# #?????????????? | | ?# #???? # #?# #??? ?????????????? | | ## #??? !? #?# #??? ?????????????? | | # #?? ???? ???#% #??? T ?????????????? | | # ###+########+###### % #??? ????????????? | | # = ! [ w r #??? #????????????? | | + |%* ! = ##### #????#?###????????????? | | # ! = #???# #?????????????????????? | | # ############+##???# #?????????????????????? | | # # #??????????# @ #?????????????????????? | | # # """ #??????????# #?????????????????????? | | ## + """ #??????????# #?????????????????????? | | # """ #???g??????# #?????????????????????? | | # #????!?????# * #?????????????????????? | | #?! #??????????# =%#?????????????????????? | | ######?######??????????#*% #?????????????????????? | | ?######????????????????# #?????????????????????? | | ?# !!!#????????????????# ?????????????????????? | | ## !!!#????????????????; ?????????????????????? | | + !!!#???????????????? ?????????????????????? | | ## #?????????Y?????? g=% ?????????????????????? | | ?# %#????????????????! = ?????????????????????? | | #######???????????????? ??!?????????????????? | | #???????????????????? ????????????????????? | | #???????????????????? ?????????????????????? | | #??????????????????????????????????????????????? | | #??????????????????????????????????????????????? | | #??????????????????????????????????????????????? | | #??????????????????????????????????????????????? | | #??????????????????????????????????????????????? | | #??????????????????????????????????????????????? | | #??????????????????????????????????????????????? | | ###??????????????????????????????????????????????? | | ?????????????????????????????????????????????????? | +----------------------------------------------------+ Best States ------------- Heat Dissipation 31 Energy Generation 12 Energy Capacity 265 Matter Stores 300 Matter Capacity 300 Sight Range 16 Robot Scan Range 15 Terrain Scan Density 10 Armor Coverage 150 Evasion (%) 55 Targeting Accuracy 5 Target Analysis 5 Recoil Reduction 4 Item Schematics ----------------- None Robot Schematics ------------------ None Fabricated ------------ Nothing Repaired ---------- Nothing Alien Tech Used ----------------- None Achievements -------------- None Challenges ------------ None Game ------ Seed MinesnifferDispersionFocus Manual? 0 Play Time 00:14:29 Cumulative 259.7 hours Start 2025.05.11 @ 19:14:09 End 2025.05.11 @ 19:26:42 Sessions 1 Manual Loads 0 Difficulty Rogue Special Mode None Game No. 176 Rogue 176 Adventurer 0 Explorer 0 Win Type - Total 14 Types 6/0/5/1/0/0/0/1/0/1 Lore% 78 Gallery% 72 Achievement% 73 Wizard Run 0 Options --------- Layout 0 ASCII 0 Keyboard 0 Movement Mouse Keybinds 0 Fullscreen 2 Font 24/Smallcaps Map View 76x50 Zoom Use 0% Tactical HUD 1 Map Filters NONE Filters NONE Steam 1 RUN: 6112be7c-f2e6-426f-8044-2f789caa9c34